{"text_format":"1","workbook":"xlsx","n_sheets":4,"sheets":["Документы","Связи","Статистика","Справочники"],"not_rendered":{"charts":0,"images":0,"macros":0,"external_links":0,"defined_names":6,"comments":0,"pivot_tables":0},"unopened":[],"bounds":{"document_bytes":16777216,"sheet_cells":100000,"rows_first":2000,"rows_last":500,"rows_between":2000,"halvings":0,"cell_chars":16384,"cell_head_chars":4096},"cells_cut":0,"cells_raw":0,"read":"whole","date_system":"1900"}

{"sheet":"Документы","index":0,"n_rows":1,"n_cols":22,"rows_kept":1,"cut":false,"hidden":false,"merged":[]}
["ID","Статус","Тип","Имя файла","Название документа","Тип (текст)","Орган","Дата","Номер","Титул","Вложенный документ","Срочный","Пустой","first_link","Всего","Необр","Необр-вн","Откл","Откл-вн","Обосн","Конкр","Аспект"]

{"sheet":"Связи","index":1,"n_rows":1,"n_cols":6,"rows_kept":1,"cut":false,"hidden":false,"merged":[]}
["ID откуда","Sub откуда","ID куда","Sub куда","Тип","Статус"]

{"sheet":"Статистика","index":2,"n_rows":24,"n_cols":6,"rows_kept":24,"cut":false,"hidden":false,"merged":[]}
[]
[null,"Документы Реестра по типам","Кол-во",null,"Документы в базе","Кол-во"]
[null,"1. Не определен",{"$f":"COUNTIFS(Документы!B:B,\"<4\",Документы!C:C,1)","v":0},null,"внутренние",{"$f":"COUNTIF(Документы!B:B,1)","v":0}]
[null,"2. Международное законодательство",{"$f":"COUNTIFS(Документы!B:B,\"<4\",Документы!C:C,2)","v":0},null,"граничные",{"$f":"COUNTIF(Документы!B:B,2)","v":0}]
[null,"3. Конституция",{"$f":"COUNTIFS(Документы!B:B,\"<4\",Документы!C:C,3)","v":0},null,"справочные",{"$f":"COUNTIF(Документы!B:B,3)","v":0}]
[null,"4. Федеральный конст-ный закон",{"$f":"COUNTIFS(Документы!B:B,\"<4\",Документы!C:C,4)","v":0},null,"Документов Реестра ВСЕГО",{"$f":"SUM(F3:F5)","v":0}]
[null,"5. Кодекс",{"$f":"COUNTIFS(Документы!B:B,\"<4\",Документы!C:C,5)","v":0},null,"внешние явно игнорируемые",{"$f":"COUNTIF(Документы!B:B,4)","v":0}]
[null,"6. Президент",{"$f":"COUNTIFS(Документы!B:B,\"<4\",Документы!C:C,6)","v":0},null,"внешние по связям",{"$f":"c_StatBase-F7","v":0}]
[null,"7. Федеральный закон",{"$f":"COUNTIFS(Документы!B:B,\"<4\",Документы!C:C,7)","v":0},null,"Внешних документов ВСЕГО",0]
[null,"8. Правительство",{"$f":"COUNTIFS(Документы!B:B,\"<4\",Документы!C:C,8)","v":0}]
[null,"9. Верховный суд",{"$f":"COUNTIFS(Документы!B:B,\"<4\",Документы!C:C,9)","v":0},null,"Связи в базе","Кол-во"]
[null,"10. Генеральная прокуратура",{"$f":"COUNTIFS(Документы!B:B,\"<4\",Документы!C:C,10)","v":0},null,"обработаны",{"$f":"F16-F15","v":0}]
[null,"11. Министерство",{"$f":"COUNTIFS(Документы!B:B,\"<4\",Документы!C:C,11)","v":0},null,"  добавлены в Реестр",{"$f":"F12-F14","v":0}]
[null,"12. Агенство, служба, ведомство",{"$f":"COUNTIFS(Документы!B:B,\"<4\",Документы!C:C,12)","v":0},null,"  отклонены",{"$f":"SUM(Документы!R:R)","v":0}]
[null,"Документов Реестра ВСЕГО",{"$f":"SUM(C3:C14)","v":0},null,"не обработаны",{"$f":"SUM(Документы!P:P)","v":0}]
[null,null,null,null,"Связей ВСЕГО",{"$f":"SUM(Документы!O:O)","v":0}]
[]
[null,"Связи в Реестре по типам","Кол-во",null,"Доля обработанных связей",{"$f":"F12/F16","v":{"$error":"#DIV/0!"}}]
[null,"1. аспектирование",{"$f":"SUM(Документы!V:V)","v":0}]
[null,"2. обоснование",{"$f":"SUM(Документы!T:T)","v":0}]
[null,"3. конкретизация",{"$f":"SUM(Документы!U:U)","v":0}]
[null,"Связей в Реестре ВСЕГО",{"$f":"SUM(C19:C21)","v":0}]
[null,"DOCUMENT_HASH",{"$f":"SUM(MOD(SUMPRODUCT(Документы!A:A,1+MOD(ROW(Документы!A:A),13)),10000000),Документы!N:N,Документы!B:B)+1","v":1}]
[null,"Путь к документам","Документы"]

{"sheet":"Справочники","index":3,"n_rows":22,"n_cols":10,"rows_kept":22,"cut":false,"hidden":false,"merged":[[1,8,1,9],[13,8,13,9],[1,2,1,3],[2,2,2,3],[3,2,3,3],[4,2,4,3],[5,2,5,3],[6,2,6,3]]}
[]
[null,"ID","Статус документа",null,null,"ID","Статус связи",null,"Названия столбцов статистики"]
[null,0,"неизвестен (default)",null,null,0,"не добавлять ссылку",null,"Столбец","Пояснение"]
[null,1,"документ Реестра - внутренний",null,null,1,"ссылка Реестра (default)",null,"first_link","Номер строки блока связей документа"]
[null,2,"документ Реестра - граничный",null,null,null,null,null,"Всего","Количество ссылок в документе"]
[null,3,"документ Реестра - справочный",null,null,"ID","Тип связи",null,"Необр","Количество необработанных ссылок"]
[null,4,"игнорируемый документ",null,null,null,"внешний документ",null,"Необр-вн","Количество необработанных ссылок на документы Реестра"]
[null,null,null,null,null,null,"игнорируемый документ",null,"Откл","Количество отклоненных ссылок"]
[null,"ID","Ур","Тип документа",null,0,"не задан (default)",null,"Откл-вн","Количество отклоненных ссылок на документы Реестра"]
[null,0,0,"не установлен (default)",null,1,"Аспектирование",null,"Аспект","Количество ссылок типа аспектирование"]
[null,1,7,"не определен",null,2,"Обоснование",null,"Обосн","Количество ссылок типа обоснование"]
[null,2,1,"Международное законодательство",null,3,"Конкретизация",null,"Конкр","Количество ссылок типа конкретизация"]
[null,3,1,"Конституция"]
[null,4,2,"Федеральный конституционный закон",null,null,null,null,"Цветовые обозначения строк (условное форматирование)"]
[null,5,3,"Кодекс",null,null,null,null,"Цвет","Пояснение"]
[null,6,3,"Президент",null,null,null,null,"Серый","Игнорируемый документ"]
[null,7,3,"Федеральный закон",null,null,null,null,"Красный","В документе есть необработанные ссылки"]
[null,8,4,"Правительство",null,null,null,null,"Зеленый","Документ добавлен в форме заглушки (без загрузки текста)"]
[null,9,4,"Верховный суд"]
[null,10,4,"Генеральная прокуратура"]
[null,11,5,"Министерство"]
[null,12,6,"Агенство, служба, ведомство"]